bitfinex-derivatives/quotes_ETHF0:USTF0_20260307
["timestamp","ask_amount","ask_price","bid_price","bid_amount"]
[1772906599511,7.99372682,1970.8,1969.4,0.58616384]
[1772906599706,4.071827,1971.1,1969.5,0.58616384]
[1772906599912,4.071827,1971.1,1970.1,0.58616384]
[1772906600113,12.06636533,1971.1,1970.1,0.58616384]
[1772906600315,12.06636533,1971.1,1970.4,13.83192638]
[1772906600516,12.06636533,1971.1,1970.4,0.58616384]
[1772906600716,12.06636533,1971.1,1970.4,0.5900875]
[1772906600913,12.62105411,1971.1,1970.6,13.83192638]
[1772906601118,12.06636533,1971.0,1970.6,13.83192638]
[1772906601319,7.99453833,1970.9,1970.7,13.24576254]
[1772906601614,3.66366398,1970.8,1970.6,0.58616384]
[1772906601813,4.73470143,1971.1,1970.7,13.24576254]
[1772906602016,4.73470143,1971.2,1970.5,0.58616384]
[1772906602214,4.071827,1971.1,1970.5,0.58616384]
[1772906602414,4.73470143,1971.1,1970.8,13.24576254]
[1772906602616,0.66287443,1971.0,1970.4,0.00392366]
[1772906602909,0.66287443,1971.0,1970.6,13.24576254]
[1772906603109,0.70847384,1970.9,1969.9,0.58616384]
[1772906603319,0.70847384,1970.9,1970.0,13.24576254]
[1772906603522,0.70847384,1970.9,1969.9,0.58616384]
[1772906603916,0.70847384,1970.9,1970.2,13.24576254]
[1772906604111,4.071827,1971.2,1970.3,0.58616384]
[1772906604318,0.71389711,1971.1,1970.6,13.24576254]
[1772906604918,0.71389711,1971.1,1970.8,13.24576254]
[1772906605117,0.71389711,1971.1,1970.4,0.58616384]
[1772906605514,0.71389711,1971.1,1970.3,0.00500272]
[1772906605515,4.79002825,1971.2,1970.7,0.58616384]
[1772906605818,0.71820125,1971.2,1970.4,0.58616384]
[1772906606016,0.71820125,1971.2,1970.7,13.24576254]
[1772906606218,0.67516627,1971.1,1970.7,13.24576254]
[1772906606409,0.67516627,1971.1,1970.9,12.58034805]
[1772906606618,0.55468878,1971.0,1970.3,0.00500272]
[1772906606818,4.62651578,1971.0,1970.3,0.59116656]
[1772906607016,0.55468878,1970.9,1970.5,8.88399314]
[1772906607214,0.55468878,1970.8,1970.5,8.88399314]
[1772906607513,0.55468878,1970.7,1970.5,6.73959889]
[1772906607713,4.071827,1970.7,1970.3,0.00500272]
[1772906607914,0.39992009,1970.3,1969.5,40.8]
[1772906608217,4.15782345,1970.0,1969.4,1.21631311]
[1772906608519,4.55774354,1970.0,1969.4,42.01631311]
[1772906609022,4.55774354,1970.0,1969.4,42.02262219]
[1772906609224,4.15782345,1969.9,1969.5,1.14957472]
[1772906609522,0.00657527,1969.9,1969.5,1.14957472]
[1772906609916,0.55468878,1969.8,1969.4,0.00630908]
[1772906610110,4.71251223,1969.7,1969.2,1.15583773]
[1772906610322,0.55468878,1969.4,1968.3,1.15583773]
[1772906610610,0.40764558,1969.3,1968.5,1.15583773]
[1772906610815,0.55468878,1969.5,1968.5,1.15583773]
[1772906611011,6.64970812,1969.5,1968.5,1.15583773]
[1772906611216,0.55468878,1969.5,1968.5,1.1615946]
[1772906611714,6.09501934,1969.6,1968.5,1.1615946]
[1772906611924,0.55468878,1969.7,1968.5,1.1615946]
[1772906613515,7.90131508,1969.9,1968.5,1.1615946]
[1772906613717,7.99884207,1969.8,1968.7,1.73168691]
[1772906613917,7.22518962,1969.7,1968.7,1.73168691]
[1772906614118,0.00657527,1969.9,1968.9,1.73168691]
[1772906615523,7.89473981,1970.4,1968.9,1.73168691]
[1772906615717,1.79972047,1970.4,1968.9,1.73168691]
[1772906615919,1.79972047,1970.4,1969.1,1.73168691]
[1772906616121,1.79972047,1970.2,1969.1,1.73168691]
[1772906616417,1.79972047,1970.1,1969.1,1.73168691]
[1772906616620,0.00437972,1970.1,1969.3,1.73168691]
[1772906617617,1.79972047,1970.5,1969.3,1.73168691]
[1772906618329,1.79972047,1970.7,1969.3,1.98558691]
[1772906618717,1.80408096,1970.7,1969.3,1.98558691]
[1772906620126,1.80408096,1970.7,1969.3,1.73168691]
[1772906620334,1.79972047,1970.4,1969.3,1.73168691]
[1772906620528,1.79972047,1970.4,1969.0,19.673]
[1772906620529,1.79972047,1970.2,1968.6,1.73168691]
[1772906620729,1.79972047,1970.0,1968.6,1.73168691]
[1772906620925,1.79972047,1970.0,1968.8,1.73168691]
[1772906621725,1.79972047,1969.8,1968.8,1.73168691]
[1772906622429,1.79972047,1969.7,1968.8,1.73168691]
[1772906625933,7.50125773,1969.6,1968.8,1.73168691]
[1772906626128,1.79972047,1970.0,1968.8,1.73168691]
[1772906626328,9.30029576,1969.9,1968.8,1.73168691]
[1772906626527,7.50057529,1969.8,1969.0,1.73168691]
[1772906628230,9.30029576,1969.8,1969.0,1.73168691]
[1772906628433,1.79972047,1969.7,1969.0,1.73168691]
[1772906628630,1.79972047,1970.2,1969.0,1.73168691]
[1772906628830,6.09501934,1970.4,1969.0,1.73168691]
[1772906628831,1.79972047,1970.0,1969.0,1.73168691]
[1772906629030,1.79972047,1969.8,1969.0,1.73168691]
[1772906631438,1.79972047,1970.2,1969.0,1.73168691]
[1772906631639,1.79972047,1970.0,1969.0,1.73168691]
[1772906631935,1.79972047,1969.8,1969.2,1.73168691]
[1772906632237,1.79972047,1970.3,1969.2,1.73168691]
[1772906632435,1.79972047,1970.1,1969.2,1.73168691]
[1772906632638,1.79972047,1969.9,1969.2,1.73168691]
[1772906635033,1.79972047,1969.9,1969.1,42.53168691]
[1772906635238,1.79972047,1969.9,1969.2,1.73168691]
[1772906636045,1.79972047,1970.3,1969.2,1.73168691]
[1772906636341,1.79972047,1970.1,1969.2,1.73168691]
[1772906636542,1.79972047,1969.9,1969.2,1.73168691]
[1772906637741,1.79972047,1970.1,1969.2,1.73168691]
[1772906637945,6.9924122,1970.0,1969.2,1.73168691]
[1772906638140,1.79972047,1970.1,1969.2,1.73168691]
[1772906641348,6.09937983,1970.7,1969.2,1.73168691]
[1772906641647,1.79972047,1970.5,1969.2,1.73168691]
[1772906641838,2.13017375,1970.3,1969.2,1.73168691]
[1772906642239,2.26940326,1970.5,1969.2,1.73168691]
[1772906642440,2.26940326,1970.6,1969.4,2.17585793]
[1772906642645,2.26940326,1970.4,1969.4,2.17585793]
[1772906644544,0.00436049,1970.7,1969.4,2.17585793]
[1772906644745,2.26940326,1970.5,1969.4,2.17585793]
[1772906645549,2.26940326,1970.5,1969.6,2.17585793]
[1772906647950,2.27376375,1970.7,1969.6,2.17585793]
[1772906648849,2.26940326,1970.5,1969.6,2.17585793]
[1772906651751,2.27376375,1970.7,1969.6,2.17585793]
[1772906656754,2.26940326,1970.5,1969.2,2.17585793]
[1772906656958,2.26940326,1970.3,1969.2,2.17585793]
[1772906660964,2.26940326,1970.6,1969.4,2.17585793]
[1772906664061,2.26940326,1970.6,1969.6,2.17585793]
[1772906679972,2.43633902,1970.7,1969.6,2.17585793]
[1772906684674,2.43633902,1970.7,1969.8,2.26394384]
[1772906686671,2.69005902,1970.7,1969.7,40.8]
[1772906686870,2.69005902,1970.7,1969.7,43.06394384]
[1772906687275,2.69005902,1970.7,1969.7,39.80194581]
[1772906687575,2.43197853,1970.5,1969.2,2.26394384]
[1772906687879,4.4660727,1970.7,1969.2,2.26394384]
[1772906687880,2.43197853,1970.3,1969.2,2.26394384]
[1772906688479,2.43197853,1970.3,1969.4,2.26394384]
[1772906693984,2.43197853,1970.3,1969.5,40.8]
[1772906694484,2.43197853,1970.3,1969.5,43.06394384]
[1772906695382,2.43197853,1970.3,1969.6,2.26394384]
[1772906695687,2.43197853,1970.6,1969.6,2.26394384]
[1772906697288,2.43197853,1970.6,1969.7,2.26394384]
[1772906699789,0.00436049,1970.7,1969.7,2.26394384]
[1772906703690,0.00436049,1970.7,1969.7,5.04652576]
[1772906703994,0.00436049,1970.7,1969.8,2.49694701]
[1772906704490,2.45604346,1971.4,1969.8,2.49694701]
[1772906704695,2.45604346,1971.2,1969.8,2.49694701]
[1772906704890,2.70970346,1971.2,1969.8,2.49694701]
[1772906705495,2.71537378,1971.2,1969.8,2.49694701]
[1772906705695,2.45604346,1971.0,1969.8,2.49694701]
[1772906707491,2.45604346,1970.8,1969.8,2.49694701]
[1772906720702,2.45604346,1970.6,1969.8,2.49694701]
[1772906724999,2.45604346,1970.6,1969.7,2.49694701]
[1772906725203,2.45604346,1970.2,1969.6,23.71194701]
[1772906727005,2.45604346,1970.2,1969.5,40.8]
[1772906727398,2.45604346,1970.2,1969.5,43.29694701]
[1772906730800,2.45604346,1970.0,1969.1,2.49694701]
[1772906731498,2.45604346,1970.0,1969.2,1.80380338]
[1772906731703,2.45604346,1970.0,1969.3,43.29694701]
[1772906731901,2.45604346,1970.0,1969.3,40.8]
[1772906732704,2.45604346,1970.0,1969.3,43.22526415]
[1772906736003,2.45604346,1970.0,1969.0,2.42526415]
[1772906736201,2.45604346,1970.0,1969.3,2.42526415]
[1772906736409,2.30319585,1970.4,1969.8,1.80380338]
[1772906736600,2.30319585,1970.4,1969.9,2.42526415]
[1772906736803,2.30319585,1970.4,1969.9,2.42995162]
[1772906737308,2.30319585,1970.7,1969.9,2.42995162]
[1772906737508,2.30319585,1970.5,1969.9,2.42995162]
[1772906739406,2.30319585,1970.5,1970.0,1.80380338]
[1772906739607,2.30319585,1970.5,1970.1,2.42526415]
[1772906740911,2.30319585,1970.9,1970.1,2.42526415]
[1772906741106,2.30319585,1970.7,1970.1,2.42526415]
[1772906764232,7.236,1971.0,1970.1,2.42526415]
[1772906764233,2.43238472,1971.0,1970.1,2.42526415]
[1772906770240,2.43805504,1971.2,1970.1,2.42526415]
[1772906770440,2.43238472,1971.0,1970.1,2.42526415]
[1772906775444,0.2538,1970.1,1968.7,2.39893951]
[1772906775635,0.60212013,1970.0,1968.7,2.39893951]
[1772906775839,7.29872189,1969.9,1968.9,2.39893951]
[1772906776038,6.69686622,1969.8,1968.9,2.39893951]
[1772906776344,0.00583726,1969.8,1968.9,2.40264719]
[1772906776845,0.33183925,1969.7,1968.9,2.40264719]
[1772906777148,0.37273403,1969.8,1968.9,2.40264719]
[1772906781339,0.37273403,1969.8,1969.1,2.40767584]
[1772906782541,0.00583726,1969.8,1969.1,2.40767584]
[1772906783046,0.2932565,1969.8,1969.1,2.40767584]
[1772906783341,0.00583726,1969.8,1969.2,2.39836224]
[1772906784346,0.22390716,1970.2,1969.2,2.39836224]
[1772906785142,0.22925438,1970.2,1969.2,2.39836224]
[1772906785946,0.00534722,1970.2,1969.5,2.37516246]
[1772906786150,0.31778696,1970.2,1969.5,2.37516246]
[1772906786848,0.31778696,1970.2,1969.7,2.37516246]
[1772906795854,0.20317567,1970.1,1969.0,2.44442796]
[1772906796456,0.20317567,1970.1,1969.2,2.44442796]
[1772906800558,0.20317567,1970.1,1969.3,2.44442796]
[1772906801857,1.9630852,1970.0,1969.3,2.44442796]
[1772906802058,0.19139024,1969.9,1969.3,2.44442796]
[1772906804261,0.20415397,1969.4,1968.9,2.44813564]
[1772906806659,0.18064179,1969.8,1969.2,2.44442796]
[1772906806864,7.14045919,1969.7,1969.2,2.44442796]
[1772906807064,0.18064179,1969.7,1969.2,2.44442796]
[1772906808167,0.14579194,1969.8,1969.2,2.44442796]
[1772906808367,6.9585399,1969.7,1969.2,2.44442796]
[1772906808568,0.14579194,1969.9,1969.2,2.44442796]
[1772906808765,7.10469818,1969.8,1969.2,2.44442796]
[1772906808966,0.14579194,1969.8,1969.2,2.44442796]
[1772906811175,4.31795559,1970.0,1969.2,2.44442796]
[1772906811370,6.95841007,1969.9,1969.2,2.44442796]
[1772906811566,6.95841007,1969.8,1969.2,2.44442796]
[1772906811770,0.11779583,1969.9,1969.2,2.44442796]
[1772906811970,6.95820052,1969.8,1969.2,2.44442796]
[1772906812170,0.11779583,1969.9,1969.2,2.44442796]
[1772906812375,6.95838917,1969.8,1969.2,2.44442796]
[1772906812675,0.11779583,1969.9,1969.2,2.44442796]
[1772906812876,0.10478579,1969.7,1969.2,2.44442796]
[1772906814878,0.0420034,1969.9,1969.2,2.44442796]
[1772906815078,0.04109703,1969.7,1969.1,2.54442796]
[1772906821488,0.04109703,1969.7,1969.1,2.44442796]
[1772906821685,4.20015976,1969.9,1969.2,2.39752498]
[1772906821889,0.94346375,1970.2,1969.6,2.30088708]
[1772906822087,7.02267984,1970.1,1969.6,2.30088708]
[1772906822389,7.02267984,1970.0,1969.6,2.30088708]
[1772906822589,1.01328891,1970.2,1969.6,2.30088708]
[1772906822883,6.99570457,1970.1,1969.6,2.30088708]
[1772906823092,0.00534722,1970.2,1969.6,2.30088708]
[1772906823286,0.00534722,1970.2,1969.8,2.15254185]
[1772906824191,1.00945702,1970.6,1969.8,2.15254185]
[1772906824394,8.61077327,1970.5,1969.8,2.15254185]
[1772906824588,6.99950141,1970.4,1969.8,2.15254185]
[1772906824990,1.00945702,1970.6,1969.8,2.15254185]
[1772906825190,8.60185804,1970.5,1969.8,2.15254185]
[1772906825390,7.00011628,1970.4,1969.8,2.15254185]
[1772906825593,0.99987125,1970.5,1969.8,2.15254185]
[1772906825887,6.99877643,1970.4,1969.8,2.15254185]
[1772906826196,0.99987125,1970.5,1969.8,2.15254185]
[1772906826395,6.99604783,1970.4,1969.8,2.15254185]
[1772906826591,0.99987125,1970.5,1969.8,2.15254185]
[1772906826792,6.99632701,1970.4,1969.8,2.15254185]
[1772906826994,0.99987125,1970.5,1969.8,2.15254185]
[1772906827195,6.99673898,1970.4,1969.8,2.15254185]
[1772906827388,0.98279824,1970.6,1969.8,2.15254185]
[1772906827592,7.97358959,1970.5,1969.8,2.15254185]
[1772906827792,6.99500615,1970.4,1969.9,2.15254185]
[1772906828194,0.97858344,1970.5,1969.9,2.15254185]
[1772906828899,0.0042148,1970.6,1969.9,3.95711678]
[1772906829098,2.62052285,1970.9,1970.0,2.15254185]
[1772906829297,6.9937991,1970.8,1970.0,2.15254185]
[1772906829501,2.62052285,1970.9,1970.0,2.15254185]
[1772906829701,1.38658204,1970.9,1970.4,2.15254185]
[1772906829902,2.38178266,1970.9,1970.4,2.15254185]
[1772906830099,2.38178266,1970.9,1970.4,2.15800514]
[1772906830100,2.38813429,1970.9,1970.4,2.15800514]
[1772906830299,1.39293367,1970.9,1970.4,2.15800514]
[1772906830701,2.38813429,1970.9,1970.4,2.15800514]
[1772906831804,1.39293367,1970.9,1970.4,2.15800514]
[1772906832497,1.39293367,1970.9,1969.8,42.60457493]
[1772906832498,0.97576545,1970.8,1969.9,2.15254185]
[1772906832703,0.97576545,1970.6,1969.9,2.15254185]
[1772906833201,1.39293367,1970.9,1970.2,2.15254185]
[1772906833399,2.35833573,1970.9,1970.2,2.15254185]
[1772906833604,0.96540206,1970.8,1970.2,2.15668223]
[1772906837211,1.96010605,1971.2,1970.5,2.15254185]
[1772906838009,1.88715845,1971.4,1970.5,2.15254185]
[1772906838209,1.89191375,1971.4,1970.5,2.15254185]
[1772906838604,1.89191375,1971.4,1970.7,2.15254185]
[1772906839114,1.95168517,1971.2,1970.7,2.15254185]
[1772906840512,1.97007571,1971.4,1970.7,2.15254185]
[1772906841302,1.80457493,1971.2,1970.7,2.15254185]
[1772906841507,1.9551317,1970.9,1970.3,2.15254185]
[1772906842106,1.99385442,1971.4,1970.5,2.15254185]
[1772906842712,1.98909912,1971.3,1970.5,2.15254185]
[1772906843808,1.97878342,1970.9,1970.3,2.15254185]
[1772906844011,1.94070554,1970.7,1970.2,2.15668223]
[1772906845011,1.80457493,1971.0,1970.2,2.15668223]
[1772906845207,1.93040558,1970.9,1970.2,2.15668223]
[1772906846107,1.90398417,1970.7,1970.2,2.15668223]
[1772906847610,1.89368135,1970.9,1970.2,2.15668223]
[1772906848904,1.86892167,1970.7,1970.2,0.00414038]
[1772906849109,1.86394517,1970.3,1969.9,2.15254185]
[1772906849311,1.86394517,1970.3,1969.6,2.15254185]
[1772906849508,1.86394517,1970.3,1969.7,40.8]
[1772906849710,1.86394517,1970.3,1969.8,2.15254185]
[1772906850213,2.26594041,1970.1,1969.8,0.00370074]
[1772906850509,2.26594041,1970.1,1969.4,2.15254185]
[1772906851403,2.26594041,1970.1,1969.4,2.15758993]
[1772906852108,2.26594041,1970.1,1969.4,0.00504808]
[1772906852314,2.51974041,1970.1,1969.4,0.00504808]
[1772906853112,2.23823203,1969.9,1969.4,0.00504808]
[1772906853308,2.24457957,1969.9,1969.4,0.00504808]
[1772906853508,2.24457957,1969.9,1969.1,2.41310572]
[1772906854513,2.24457957,1969.9,1969.1,2.41701275]
[1772906862318,0.00634754,1969.9,1969.1,2.41701275]
[1772906863716,0.00634754,1969.9,1969.1,20.80801275]
[1772906863921,0.00634754,1969.9,1969.2,2.41310572]
[1772906867925,2.23823203,1970.6,1969.2,2.41310572]
[1772906868129,2.23823203,1970.4,1969.2,2.41310572]
[1772906868828,2.24221956,1970.4,1969.2,2.41310572]
[1772906870124,0.00398753,1970.4,1969.2,2.41310572]
[1772906870430,2.24221956,1970.4,1969.2,2.41310572]
[1772906880539,2.23823203,1970.2,1969.2,2.41310572]
[1772906883734,2.23823203,1970.2,1969.1,0.00390703]
[1772906883735,2.21368216,1970.0,1969.1,0.00390703]
[1772906883934,2.21368216,1969.8,1969.1,2.2475129]
[1772906885938,2.21368216,1969.8,1969.1,0.00390703]
[1772906886341,2.21368216,1969.8,1969.1,2.2475129]
[1772906887744,2.21368216,1969.8,1969.1,0.00390703]
[1772906888042,2.21368216,1969.6,1968.9,2.24360587]
[1772906888737,2.21368216,1969.4,1968.1,2.24360587]
[1772906888935,2.21368216,1969.2,1968.1,2.24360587]
[1772906889142,2.21368216,1969.2,1968.1,2.24951696]
[1772906889337,2.21368216,1969.2,1968.3,2.24360587]
[1772906896051,2.21368216,1969.5,1968.4,2.24360587]
[1772906896646,2.21368216,1969.5,1968.6,2.24360587]
[1772906897445,2.21368216,1970.0,1968.6,2.24360587]
[1772906897646,2.21368216,1969.8,1968.6,2.24360587]
[1772906898145,4.44529837,1970.2,1968.6,2.24360587]
[1772906898146,0.2538,1970.2,1968.6,2.24360587]
[1772906898350,2.21368216,1970.1,1968.6,2.24360587]
[1772906901650,2.21368216,1970.1,1968.8,2.24360587]
[1772906901843,2.21368216,1970.1,1969.0,2.24360587]
[1772906902043,2.21368216,1970.1,1969.2,2.24360587]
[1772906903152,2.21368216,1970.3,1969.2,2.24360587]
[1772906907556,2.21368216,1970.3,1969.4,2.24360587]
[1772906909657,2.21368216,1970.3,1968.9,18.597]
[1772906909658,2.46747216,1970.3,1969.0,2.24360587]
[1772906910058,2.21368216,1970.1,1969.2,2.24360587]
[1772906912659,0.25379,1970.3,1969.2,2.24360587]
[1772906912859,2.12361768,1970.1,1969.2,2.24360587]
[1772906919567,2.12361768,1969.9,1969.1,2.00862859]
[1772906921465,2.12361768,1969.9,1968.9,42.80862859]
[1772906921656,2.12361768,1969.7,1969.0,2.00862859]
[1772906921862,2.12361768,1969.9,1969.0,2.00862859]
[1772906924059,2.12361768,1969.7,1968.9,2.00862859]
[1772906924770,2.12361768,1969.5,1968.9,2.00862859]
[1772906924965,2.12361768,1969.5,1968.8,2.00862859]
[1772906925562,6.92396069,1969.4,1968.6,42.80862859]
[1772906925768,2.12361768,1969.3,1968.6,42.80862859]
[1772906926067,2.12361768,1969.3,1968.7,2.00862859]
[1772906927872,2.12361768,1969.6,1968.7,2.00862859]
[1772906928073,2.12361768,1969.4,1968.7,2.00862859]
[1772906928369,4.17784546,1969.8,1968.7,2.00862859]
[1772906928673,2.12361768,1969.6,1968.7,2.00862859]
[1772906928973,2.12361768,1969.8,1968.7,2.00862859]
[1772906932974,2.12361768,1970.0,1968.8,2.00862859]
[1772906933174,9.04743221,1969.9,1968.8,2.00862859]
[1772906933370,2.12361768,1969.9,1968.8,2.00862859]
[1772906938580,2.12361768,1969.9,1969.4,2.00862859]
[1772906941482,2.12361768,1969.9,1969.1,2.00862859]
[1772906942085,4.43164546,1970.2,1969.4,1.94159019]
[1772906942086,1.99067267,1970.1,1969.4,1.94159019]
[1772906942281,1.98227437,1969.9,1969.4,1.94159019]
[1772906943693,1.98227437,1970.2,1969.6,2.06740848]
[1772906943892,1.98227437,1970.2,1969.6,2.07182336]
[1772906948995,1.98227437,1970.2,1969.6,0.00441488]
[1772906951295,1.98227437,1969.8,1969.1,2.06740848]
[1772906952394,1.98227437,1969.8,1969.1,2.07131292]
[1772906953087,1.98227437,1970.1,1969.5,2.06740848]
[1772906953289,1.98227437,1969.9,1969.5,2.06740848]
[1772906955496,1.98227437,1970.2,1969.5,2.06740848]
[1772906955694,1.98227437,1970.0,1969.5,2.06740848]
[1772906959798,1.98227437,1970.2,1969.7,2.06740848]
[1772906960099,6.9550218,1970.1,1969.7,2.06740848]
[1772906960300,1.98227437,1970.2,1969.7,2.06740848]
[1772906960597,8.93767048,1970.1,1969.7,2.06740848]
[1772906960798,1.98227437,1970.1,1969.7,2.06740848]
[1772906962693,4.17784546,1970.3,1969.7,2.06740848]
[1772906962898,2.58672335,1970.2,1969.7,2.06740848]
[1772906963100,6.95774445,1970.1,1969.7,2.06740848]
[1772906965607,1.98227437,1970.2,1969.7,2.06740848]
[1772906965801,6.94157582,1970.1,1969.7,2.06740848]
[1772906966103,1.98227437,1970.3,1969.7,2.06740848]
[1772906966300,8.92377413,1970.2,1969.7,2.06740848]
[1772906966605,1.9862619,1970.4,1969.9,2.06740848]
[1772906966804,8.92423623,1970.3,1969.9,2.06740848]
[1772906967005,1.98227437,1970.3,1969.9,2.06740848]
[1772906969910,1.9862619,1970.4,1969.9,2.06740848]
[1772906970110,1.98227437,1970.3,1969.9,2.06740848]
[1772906971512,1.98227437,1970.3,1969.7,2.06740848]
[1772906971811,1.98227437,1970.1,1969.3,2.06740848]
[1772906972010,1.98227437,1970.1,1969.5,2.06740848]
[1772906986721,1.90431341,1970.3,1969.5,2.06740848]
[1772906987418,6.08215887,1970.9,1970.0,1.84996894]
[1772906987619,6.94614611,1970.8,1970.1,1.84996894]
[1772906987918,6.94614611,1970.7,1970.1,1.84996894]
[1772906988118,1.90431341,1970.9,1970.1,1.84996894]
[1772906988520,1.90851147,1970.9,1970.1,1.84996894]
[1772906988921,0.00419806,1970.9,1970.1,1.84996894]
[1772906989122,1.90851147,1970.9,1970.1,1.84996894]
[1772906993620,1.90851147,1970.9,1970.0,18.286]
[1772906993823,1.90431341,1970.7,1969.9,1.84996894]
[1772906996121,1.90431341,1970.8,1969.9,1.84996894]
[1772907004530,1.74294567,1970.9,1969.9,1.84996894]
[1772907005839,0.00419806,1970.9,1969.9,1.84996894]
[1772907007435,1.74294567,1970.9,1969.9,1.84996894]
[1772907007836,0.00419806,1970.9,1970.2,1.71254342]
[1772907008434,0.00419806,1970.9,1970.4,1.71254342]
[1772907008639,5.91659307,1971.6,1970.6,1.71254342]
[1772907008937,1.73874761,1971.6,1970.6,1.71254342]
[1772907009733,1.74534607,1971.6,1970.6,1.71829219]
[1772907011440,1.73874761,1971.4,1970.6,1.71829219]
[1772907013838,1.73874761,1971.4,1970.8,1.71254342]
[1772907015538,1.73874761,1971.4,1970.6,0.00574877]
[1772907015841,1.73874761,1971.4,1970.6,1.71829219]
[1772907016038,1.73874761,1971.5,1970.8,1.71254342]
[1772907017342,1.74534607,1971.6,1970.8,1.71254342]
[1772907031757,1.74534607,1971.6,1970.9,1.71254342]
[1772907032859,1.50611188,1972.0,1970.9,1.71254342]
[1772907033961,1.51172642,1972.0,1970.9,1.71254342]
[1772907037965,1.50611188,1971.8,1970.9,1.71254342]
[1772907046672,1.50611188,1971.7,1970.9,1.71254342]
[1772907051678,1.50611188,1971.6,1970.9,1.56474218]
[1772907054680,1.50611188,1971.6,1971.1,1.8019685]
[1772907054980,1.50611188,1971.8,1971.2,1.56474218]
[1772907055282,1.50611188,1971.8,1971.4,1.56474218]
[1772907055482,1.51172642,1972.0,1971.4,1.56474218]
[1772907058582,0.00561454,1972.0,1971.4,1.56474218]
[1772907058776,1.51172642,1972.0,1971.6,1.56474218]
[1772907058981,1.51172642,1972.0,1971.4,1.56474218]
[1772907060489,1.51172642,1972.0,1971.2,1.56474218]
[1772907060893,1.51172642,1972.0,1971.4,1.56474218]
[1772907061695,1.51172642,1972.0,1971.6,1.41508488]
[1772907063286,1.51172642,1972.0,1971.4,1.49824843]
[1772907063591,1.51172642,1972.0,1971.2,1.49824843]
[1772907064486,1.51172642,1972.0,1971.4,1.49824843]
[1772907065791,1.51172642,1972.0,1971.2,1.49824843]
[1772907067093,1.53726837,1971.8,1971.0,1.49824843]
[1772907073689,1.53726837,1971.8,1971.2,1.49824843]
[1772907073895,1.79083837,1971.9,1971.4,1.49824843]
[1772907076397,1.79083837,1971.9,1971.0,1.49824843]
[1772907077891,1.53726837,1971.8,1971.0,1.49824843]
[1772907081101,1.53726837,1971.8,1971.1,1.8019685]
[1772907081399,1.53726837,1971.8,1971.2,1.49824843]
[1772907086900,0.25357,1971.9,1971.2,1.49824843]
[1772907087104,1.54288291,1972.0,1971.4,1.49824843]
[1772907087607,1.53726837,1971.9,1971.2,1.49824843]
[1772907090305,1.53726837,1971.7,1970.8,1.49824843]
[1772907090510,1.53726837,1971.7,1971.0,1.49824843]
[1772907093714,1.53726837,1971.7,1971.2,1.34375051]
[1772907094011,1.46200993,1971.9,1971.2,1.34375051]
[1772907096618,1.46200993,1971.9,1971.4,1.34375051]
[1772907101415,1.46200993,1971.9,1971.3,1.34375051]
[1772907105320,1.46200993,1971.9,1971.4,1.34375051]
[1772907109721,1.46762447,1972.0,1971.4,1.34375051]
[1772907123725,1.46762447,1972.0,1970.8,1.26753848]
[1772907124130,1.46762447,1972.0,1971.1,1.26753848]
[1772907144243,0.25357,1971.9,1970.8,1.26753848]
[1772907144544,1.2653132,1971.5,1970.8,1.26753848]
[1772907147942,3.0663732,1971.5,1970.6,41.83645754]
[1772907148147,1.2653132,1971.4,1970.6,1.26753848]
[1772907149046,1.2653132,1971.4,1970.6,1.27294737]
[1772907153350,1.29330834,1971.8,1970.7,1.28902379]
[1772907159157,1.29330834,1971.8,1971.0,1.28902379]
[1772907159755,1.29330834,1971.8,1970.7,1.28902379]
[1772907159960,1.29330834,1971.6,1970.7,1.28902379]
[1772907161060,1.29330834,1971.6,1970.6,1.29443268]
[1772907161359,0.25362,1971.5,1970.6,1.29443268]
[1772907161658,1.29330834,1971.4,1970.6,1.29443268]
[1772907161957,1.29330834,1971.4,1970.6,0.00540889]
[1772907163357,1.29330834,1971.4,1970.6,1.29443268]
[1772907170563,1.29330834,1971.4,1970.8,1.28902379]
[1772907172266,1.29330834,1971.7,1970.8,1.28902379]
[1772907176068,1.29330834,1971.7,1971.0,1.28902379]
[1772907189977,1.11056728,1971.6,1971.0,1.28902379]
[1772907194683,1.11056728,1971.6,1970.6,1.80742192]
[1772907194886,1.11056728,1971.3,1970.7,1.15705959]
[1772907205199,1.11056728,1971.5,1970.7,1.15705959]
[1772907210600,0.00561454,1972.0,1970.7,1.15705959]
[1772907210799,1.11056728,1971.8,1970.8,1.15705959]
[1772907211004,1.11056728,1971.6,1970.8,1.15705959]
[1772907211201,1.11056728,1971.6,1971.0,1.15705959]
[1772907213705,1.12861594,1971.4,1970.8,1.10054691]
[1772907214100,1.12861594,1971.6,1970.9,1.10054691]
[1772907217309,1.12861594,1971.6,1971.1,1.10054691]
[1772907217904,1.12861594,1971.6,1971.0,1.10054691]
[1772907218613,1.12861594,1971.6,1970.7,1.10054691]
[1772907221315,1.12861594,1971.6,1970.7,2.90255994]
[1772907221512,1.12861594,1971.6,1970.8,1.10054691]
[1772907226314,1.12861594,1971.6,1971.0,1.10054691]
[1772907232317,1.12861594,1971.6,1970.7,1.10054691]
[1772907235522,1.12861594,1971.9,1971.0,1.10054691]
[1772907241425,1.13423048,1972.0,1971.0,1.10054691]
[1772907244128,0.00561454,1972.0,1971.2,1.80213949]
[1772907244325,0.00561454,1972.0,1971.3,1.02958549]
[1772907244729,1.01003906,1972.0,1971.3,1.02958549]
[1772907246030,0.00561454,1972.0,1971.3,1.02958549]
[1772907247129,1.01003906,1972.0,1971.3,1.02958549]
[1772907248232,0.00561454,1972.0,1971.3,1.02958549]
[1772907251133,6.92101591,1971.9,1971.3,1.02958549]
[1772907251438,0.00561454,1972.0,1971.3,1.02958549]
[1772907261448,1.01003906,1972.0,1971.3,1.02958549]
[1772907262053,0.00561454,1972.0,1971.3,1.02958549]
[1772907270567,1.00442452,1972.3,1971.3,1.02958549]
[1772907270866,6.77287598,1972.2,1971.3,1.02958549]
[1772907271064,6.77287598,1972.1,1971.3,1.02958549]
[1772907271566,6.77658671,1972.1,1971.3,1.02958549]
[1772907271766,0.00371073,1972.1,1971.3,1.02958549]
[1772907281178,6.75691221,1972.4,1971.3,1.02958549]
[1772907281376,7.35602351,1972.3,1971.3,1.02958549]
[1772907281577,6.76544447,1972.2,1971.6,1.2284321]
[1772907281778,1.20115122,1972.2,1971.6,1.2284321]
[1772907282175,1.20493882,1972.2,1971.6,1.2284321]
[1772907285581,1.20115122,1972.0,1971.6,1.2284321]
[1772907293490,1.20115122,1972.1,1971.6,1.2284321]
[1772907295695,1.80487543,1972.2,1971.6,1.2284321]
[1772907295696,1.20115122,1971.9,1971.6,1.2284321]
[1772907296093,1.20115122,1972.1,1971.6,1.2284321]
[1772907296293,6.76674692,1972.0,1971.6,1.2284321]
[1772907296495,1.20493882,1972.2,1971.6,1.2284321]
[1772907296690,7.96793568,1972.1,1971.6,1.2284321]
[1772907296890,1.20115122,1972.1,1971.6,1.2284321]
[1772907298296,6.76734741,1972.0,1971.6,1.2284321]
[1772907298496,1.20115122,1972.1,1971.6,1.2284321]
[1772907298697,6.76737383,1972.0,1971.6,1.2284321]
[1772907298992,1.20115122,1972.1,1971.6,1.2284321]
[1772907299197,6.76737383,1972.0,1971.6,1.2284321]